fUST/lending_fUST_20240704
["ID","MTS","AMOUNT","RATE_DAILY","PERIOD"]
[331138576,1720100992117,-930.52926549,0.00012205,2]
[331138577,1720100992302,-270.13549361,0.00012205,2]
[331138641,1720101038335,-1194.72369887,0.00012205,2]
[331138642,1720101038346,-762.4852743,0.00012823,2]
[331138643,1720101038356,-521.5042343,0.00013725,2]
[331138645,1720101038366,-429.54814426,0.00013728,2]
[331138646,1720101038379,-2909.88542315,0.00013729,2]
[331138648,1720101038391,-1940.17760531,0.00013729,2]
[331138651,1720101038403,-300.0,0.00013817,2]
[331138653,1720101038412,-300.0,0.00013817,2]
[331138654,1720101038425,-6716.62663297,0.00013818,2]
[331138657,1720101038438,-175.30559306,0.00013818,2]
[331138659,1720101038447,-13783.8644521,0.00013819,2]
[331138661,1720101038459,-283.47855874,0.00013825,2]
[331138663,1720101038469,-165.70069415,0.00013825,2]
[331138665,1720101038479,-434.33412669,0.00013825,2]
[331138667,1720101038489,-500.0,0.00013826,2]
[331138669,1720101038501,-39.97597526,0.00013826,2]
[331138671,1720101038513,-764.87402474,0.00013826,2]
[331138673,1720101038523,-3114.55,0.00013826,2]
[331138675,1720101038532,-500.0,0.00013826,2]
[331138677,1720101038542,-17822.55,0.00013826,2]
[331138679,1720101038551,-1795.46,0.00013826,2]
[331138681,1720101038561,-3265.15,0.00013826,2]
[331138683,1720101038571,-1044.07,0.00013826,2]
[331138685,1720101038581,-1140.50047029,0.00013826,2]
[331138687,1720101038591,-500.0,0.00013827,2]
[331138689,1720101038601,-500.0,0.00013827,2]
[331138691,1720101038612,-500.0,0.00013827,2]
[331138693,1720101038625,-500.0,0.00013827,2]
[331138694,1720101038636,-500.0,0.00013827,2]
[331138696,1720101038646,-500.0,0.00013827,2]
[331138698,1720101038656,-500.0,0.00013827,2]
[331138700,1720101038667,-957.18,0.00013827,2]
[331138702,1720101038678,-351.13498108,0.00013827,2]
[331138704,1720101038688,-818.76,0.00013827,2]
[331138705,1720101038699,-500.0,0.00013827,2]
[331138707,1720101038710,-235.44598207,0.00013827,2]
[331138709,1720101038720,-500.0,0.00013827,2]
[331138710,1720101038730,-869.14,0.00013827,2]
[331138711,1720101038740,-500.0,0.00013827,2]
[331138712,1720101038750,-500.0,0.00013827,2]
[331138713,1720101038759,-500.0,0.00013827,2]
[331138714,1720101038770,-500.0,0.00013827,2]
[331138715,1720101038780,-500.0,0.00013827,2]
[331138716,1720101038790,-500.0,0.00013827,2]
[331138717,1720101038800,-529.09069393,0.00013827,2]
[331138718,1720101038810,-501.43587116,0.00013827,2]
[331138719,1720101038820,-500.0,0.00013827,2]
[331138720,1720101038831,-500.0,0.00013827,2]
[331138721,1720101038841,-431.99558573,0.00013827,2]
[331138722,1720101038851,-500.0,0.00013827,2]
[331138723,1720101038861,-500.0,0.00013827,2]
[331138724,1720101038871,-500.0,0.00013827,2]
[331138725,1720101038884,-199.30313638,0.00013827,2]
[331138726,1720101038894,-622.0182485,0.00013827,2]
[331138727,1720101038903,-500.0,0.00013827,2]
[331138728,1720101038912,-506.39,0.00013827,2]
[331138729,1720101038922,-11052.87,0.00013827,2]
[331138730,1720101038931,-503.68030026,0.00013827,2]
[331138731,1720101038941,-500.0,0.00013827,2]
[331138732,1720101038951,-500.0,0.00013827,2]
[331138733,1720101038961,-500.0,0.00013827,2]
[331138734,1720101038971,-2330.57,0.00013827,2]
[331138735,1720101038981,-500.0,0.00013827,2]
[331138736,1720101038991,-504.32857135,0.00013827,2]
[331138737,1720101039001,-3053.52,0.00013827,2]
[331138738,1720101039011,-610.04,0.00013827,2]
[331138739,1720101039022,-500.0,0.00013827,2]
[331138740,1720101039031,-500.0,0.00013827,2]
[331138741,1720101039042,-503.92870865,0.00013827,2]
[331138742,1720101039052,-308.29331516,0.00013827,2]
[331138743,1720101039062,-1631.65,0.00013827,2]
[331138744,1720101039073,-502.75853814,0.00013827,2]
[331138745,1720101039084,-500.0,0.00013827,2]
[331138746,1720101039095,-504.50325802,0.00013827,2]
[331138747,1720101039105,-500.0,0.00013827,2]
[331138748,1720101039114,-500.0,0.00013827,2]
[331138749,1720101039128,-500.0,0.00013827,2]
[331138750,1720101039139,-500.0,0.00013827,2]
[331138751,1720101039148,-491.35864158,0.00013827,2]
[331138752,1720101039158,-500.0,0.00013827,2]
[331138753,1720101039168,-507.61178808,0.00013827,2]
[331138754,1720101039178,-1340.73,0.00013827,2]
[331138755,1720101039187,-500.0,0.00013827,2]
[331138756,1720101039197,-500.0,0.00013827,2]
[331138757,1720101039207,-513.74471728,0.00013827,2]
[331138758,1720101039216,-500.0,0.00013827,2]
[331138759,1720101039226,-500.0,0.00013827,2]
[331138760,1720101039236,-500.0,0.00013827,2]
[331138761,1720101039246,-5775.51,0.00013827,2]
[331138762,1720101039256,-500.0,0.00013827,2]
[331138763,1720101039266,-500.0,0.00013827,2]
[331138764,1720101039276,-500.0,0.00013827,2]
[331138765,1720101039286,-501.59094843,0.00013827,2]
[331138766,1720101039297,-500.0,0.00013827,2]
[331138767,1720101039307,-500.0,0.00013827,2]
[331138768,1720101039317,-500.0,0.00013827,2]
[331138769,1720101039328,-500.0,0.00013827,2]
[331138770,1720101039338,-500.0,0.00013827,2]
[331138771,1720101039348,-201.46254985,0.00013827,2]
[331138772,1720101039358,-500.0,0.00013827,2]
[331138773,1720101039367,-500.0,0.00013827,2]
[331138774,1720101039382,-500.0,0.00013827,2]
[331138775,1720101039392,-500.0,0.00013827,2]
[331138776,1720101039406,-1073.09,0.00013827,2]
[331138777,1720101039416,-500.0,0.00013827,2]
[331138778,1720101039426,-500.0,0.00013827,2]
[331138779,1720101039436,-500.0,0.00013827,2]
[331138780,1720101039447,-500.0,0.00013827,2]
[331138781,1720101039457,-500.0,0.00013827,2]
[331138782,1720101039467,-500.0,0.00013827,2]
[331138783,1720101039476,-500.0,0.00013827,2]
[331138784,1720101039488,-500.0,0.00013827,2]
[331138785,1720101039499,-500.0,0.00013827,2]
[331138786,1720101039508,-500.0,0.00013827,2]
[331138787,1720101039518,-579.75,0.00013827,2]
[331138788,1720101039527,-500.0,0.00013827,2]
[331138789,1720101039537,-1313.32,0.00013827,2]
[331138790,1720101039546,-775.95,0.00013827,2]
[331138791,1720101039555,-517.42106403,0.00013827,2]
[331138792,1720101039565,-500.0,0.00013827,2]
[331138793,1720101039576,-1210.14,0.00013828,2]
[331138794,1720101039586,-500.0,0.00013828,2]
[331138795,1720101039596,-525.2830863,0.00013828,2]
[331138796,1720101039607,-1663.74,0.00013828,2]
[331138797,1720101039617,-379.83395268,0.00013828,2]
[331138798,1720101039629,-500.0,0.00013828,2]
[331138799,1720101039639,-500.0,0.00013828,2]
[331138800,1720101039648,-500.0,0.00013828,2]
[331138801,1720101039658,-500.0,0.00013828,2]
[331138802,1720101039667,-500.0,0.00013828,2]
[331138803,1720101039677,-1138.05,0.00013828,2]
[331138804,1720101039687,-1565.89,0.00013828,2]
[331138805,1720101039697,-500.0,0.00013828,2]
[331138806,1720101039707,-500.0,0.00013828,2]
[331138807,1720101039716,-500.0,0.00013828,2]
[331138808,1720101039726,-500.0,0.00013828,2]
[331138809,1720101039736,-500.0,0.00013828,2]
[331138810,1720101039746,-500.0,0.00013828,2]
[331138811,1720101039755,-500.0,0.00013828,2]
[331138812,1720101039765,-859.42,0.00013828,2]
[331138813,1720101039775,-1168.25,0.00013828,2]
[331138814,1720101039786,-1168.25,0.00013828,2]
[331138815,1720101039795,-500.0,0.00013828,2]
[331138816,1720101039805,-500.0,0.00013828,2]
[331138817,1720101039815,-500.0,0.00013828,2]
[331138818,1720101039825,-688.38,0.00013828,2]
[331138819,1720101039835,-500.0,0.00013828,2]
[331138820,1720101039845,-500.0,0.00013828,2]
[331138821,1720101039854,-1087.09,0.00013828,2]
[331138822,1720101039864,-500.0,0.00013828,2]
[331138823,1720101039874,-500.0,0.00013828,2]
[331138824,1720101039887,-505.08479797,0.00013828,2]
[331138825,1720101039897,-500.0,0.00013828,2]
[331138826,1720101039907,-500.0,0.00013828,2]
[331138827,1720101039917,-1229.9,0.00013828,2]
[331138828,1720101039929,-500.0,0.00013828,2]
[331138829,1720101039940,-536.61,0.00013828,2]
[331138830,1720101039950,-500.0,0.00013828,2]
[331138831,1720101039960,-506.12692733,0.00013828,2]
[331138832,1720101039970,-500.0,0.00013828,2]
[331138833,1720101039979,-500.0,0.00013828,2]
[331138834,1720101039989,-4911.37,0.00013828,2]
[331138835,1720101039999,-4847.89209923,0.00013829,2]
[331138836,1720101040008,-526.18308385,0.00013829,2]
[331138837,1720101040017,-500.0,0.00013829,2]
[331138838,1720101040027,-500.0,0.00013829,2]
[331138839,1720101040036,-500.0,0.00013829,2]
[331138840,1720101040046,-500.0,0.00013829,2]
[331138841,1720101040056,-500.0,0.00013829,2]
[331138842,1720101040067,-506.2879413,0.00013829,2]
[331138843,1720101040077,-500.0,0.00013829,2]
[331138844,1720101040087,-503.06600599,0.00013829,2]
[331138845,1720101040107,-704.07,0.00013829,2]
[331138846,1720101040118,-500.0,0.00013829,2]
[331138847,1720101040131,-500.0,0.00013829,2]
[331138848,1720101040142,-500.0,0.00013829,2]
[331138849,1720101040152,-237.18240255,0.00013829,2]
[331138850,1720101040162,-614.95,0.00013829,2]
[331138851,1720101040173,-500.0,0.00013829,2]
[331138852,1720101040183,-500.0,0.00013829,2]
[331138853,1720101040193,-506.22383554,0.00013829,2]
[331138854,1720101040204,-500.0,0.00013829,2]
[331138855,1720101040214,-500.0,0.00013829,2]
[331138856,1720101040224,-500.0,0.00013829,2]
[331138857,1720101040234,-500.0,0.00013829,2]
[331138858,1720101040245,-500.0,0.00013829,2]
[331138859,1720101040256,-507.55288444,0.00013829,2]
[331138860,1720101040266,-500.0,0.00013829,2]
[331138861,1720101040276,-500.0,0.00013829,2]
[331138862,1720101040286,-500.0,0.00013829,2]
[331138863,1720101040296,-500.0,0.00013829,2]
[331138864,1720101040307,-500.0,0.00013829,2]
[331138865,1720101040317,-500.0,0.00013829,2]
[331138866,1720101040327,-500.0,0.00013829,2]
[331138867,1720101040337,-513.55992585,0.00013829,2]
[331138868,1720101040347,-500.0,0.00013829,2]
[331138869,1720101040357,-500.0,0.00013829,2]
[331138870,1720101040367,-500.0,0.00013829,2]
[331138871,1720101040378,-500.0,0.00013829,2]
[331138872,1720101040389,-500.0,0.00013829,2]
[331138873,1720101040400,-500.0,0.00013829,2]
[331138874,1720101040415,-500.0,0.00013829,2]
[331138875,1720101040425,-500.0,0.00013829,2]
[331138876,1720101040435,-507.48818672,0.00013829,2]
[331138877,1720101040446,-500.0,0.00013829,2]
[331138878,1720101040456,-500.0,0.00013829,2]
[331138879,1720101040465,-500.0,0.00013829,2]
[331138880,1720101040475,-500.0,0.00013829,2]
[331138881,1720101040485,-500.0,0.00013829,2]
[331138882,1720101040499,-500.0,0.00013829,2]
[331138883,1720101040509,-500.0,0.00013829,2]
[331138884,1720101040519,-500.0,0.00013829,2]
[331138885,1720101040528,-500.0,0.00013829,2]
[331138886,1720101040539,-500.0,0.00013829,2]
[331138887,1720101040548,-500.0,0.00013829,2]
[331138888,1720101040558,-561.2071717,0.00013829,2]
[331138889,1720101040568,-500.0,0.00013829,2]
[331138890,1720101040578,-697.28,0.00013829,2]
[331138891,1720101040588,-500.0,0.00013829,2]
[331138892,1720101040752,-500.0,0.00013829,2]
[331138893,1720101040764,-500.0,0.00013829,2]
[331138894,1720101040775,-500.0,0.00013829,2]
[331138895,1720101040785,-500.0,0.00013829,2]
[331138896,1720101040795,-500.0,0.00013829,2]
[331138897,1720101040805,-500.0,0.00013829,2]
[331138898,1720101040816,-500.0,0.00013829,2]
[331138899,1720101040826,-500.0,0.00013829,2]
[331138900,1720101040836,-500.0,0.00013829,2]
[331138901,1720101040846,-713.25,0.00013829,2]
[331138902,1720101040855,-500.0,0.00013829,2]
[331138903,1720101040865,-1009.23,0.00013829,2]
[331138904,1720101040874,-500.0,0.00013829,2]
[331138905,1720101040886,-812.92,0.00013829,2]
[331138906,1720101040899,-500.0,0.00013829,2]
[331138907,1720101040910,-622.36,0.00013829,2]
[331138908,1720101040920,-500.0,0.00013829,2]
[331138909,1720101040929,-1891.85,0.00013829,2]
[331138910,1720101040939,-788.27,0.00013829,2]
[331138911,1720101040949,-500.0,0.00013829,2]
[331138912,1720101040959,-500.0,0.00013829,2]
[331138913,1720101040968,-621.21,0.00013829,2]
[331138914,1720101040978,-500.0,0.00013829,2]
[331138915,1720101040988,-500.0,0.00013829,2]
[331138916,1720101040997,-500.0,0.00013829,2]
[331138917,1720101041007,-500.0,0.00013829,2]
[331138918,1720101041017,-500.0,0.00013829,2]
[331138919,1720101041026,-500.0,0.00013829,2]
[331138920,1720101041036,-152.26470202,0.00013829,2]
[331138921,1720101041045,-500.0,0.00013829,2]
[331138922,1720101041055,-500.0,0.00013829,2]
[331138923,1720101041065,-500.0,0.00013829,2]
[331138924,1720101041074,-500.0,0.00013829,2]
[331138925,1720101041086,-500.0,0.00013829,2]
[331138926,1720101041095,-500.0,0.00013829,2]
[331138927,1720101041105,-588.29,0.00013829,2]
[331138928,1720101041115,-586.74,0.00013829,2]
[331138929,1720101041126,-500.0,0.00013829,2]
[331138930,1720101041136,-500.0,0.00013829,2]
[331138931,1720101041147,-6891.93222603,0.0001383,2]
[331138932,1720101041156,-500.0,0.00013831,2]
[331138933,1720101041166,-506.17075588,0.00013831,2]
[331138934,1720101041176,-160.42457383,0.00013836,2]
[331138935,1720101041186,-1168.25,0.00013836,2]
[331138936,1720101041196,-10702.66,0.00013839,2]
[331138937,1720101041206,-500.0,0.00013839,2]
[331138938,1720101041216,-500.0,0.00013839,2]
[331138939,1720101041226,-5745.18,0.00013839,2]
[331138940,1720101041236,-1092.78,0.00013839,2]
[331138941,1720101041247,-792.34,0.00013839,2]
[331138942,1720101041256,-1044.13,0.00013839,2]
[331138943,1720101041267,-8100.79,0.00013839,2]
[331138944,1720101041277,-3689.68,0.00013839,2]
[331138945,1720101041287,-500.0,0.00013841,2]
[331138946,1720101041296,-500.0,0.00013841,2]
[331138947,1720101041306,-429.54814423,0.00013853,2]
[331138948,1720101041316,-429.54814423,0.00013978,2]
[331138949,1720101041325,-309.7057795,0.00014,2]
[331138950,1720101041335,-2000.0,0.00014003,2]
[331138951,1720101041345,-1602.96737924,0.00014048,2]
[331138952,1720101041355,-6891.93222603,0.00014091,2]
[331138953,1720101041364,-6891.93222603,0.00014092,2]
[331138954,1720101041374,-6891.93222603,0.00014093,2]
[331138955,1720101041386,-6891.93222603,0.00014095,2]
[331138956,1720101041396,-500.0,0.000141,2]
[331138957,1720101041407,-804.85,0.000141,2]
[331138958,1720101041419,-3114.55,0.000141,2]
[331138959,1720101041429,-500.0,0.000141,2]
[331138960,1720101041439,-17822.55,0.000141,2]
[331138961,1720101041450,-1795.46,0.000141,2]
[331138962,1720101041460,-3265.15,0.000141,2]
[331138963,1720101041471,-1044.07,0.000141,2]
[331138964,1720101041481,-500.0,0.00014101,2]
[331138965,1720101041491,-500.0,0.00014101,2]
[331138966,1720101041504,-500.0,0.00014101,2]
[331138967,1720101041516,-476.562651,0.00014101,2]
[331138968,1720101041526,-500.0,0.00014101,2]
[331138969,1720101041536,-500.0,0.00014101,2]
[331138970,1720101041546,-957.18,0.00014101,2]
[331138971,1720101041556,-818.76,0.00014101,2]
[331138972,1720101041566,-500.0,0.00014101,2]
[331138973,1720101041576,-500.0,0.00014101,2]
[331138974,1720101041586,-869.14,0.00014101,2]
[331138975,1720101041597,-500.0,0.00014101,2]
[331138976,1720101041607,-500.0,0.00014101,2]
[331138977,1720101041618,-500.0,0.00014101,2]
[331138978,1720101041634,-648.58292271,0.00014101,2]
[331138979,1720101041644,-500.0,0.00014101,2]
[331138980,1720101041654,-505.63436566,0.00014101,2]
[331138981,1720101041665,-500.0,0.00014101,2]
[331138982,1720101041676,-500.0,0.00014101,2]
[331138983,1720101041687,-500.0,0.00014101,2]
[331138984,1720101041698,-500.0,0.00014101,2]
[331138985,1720101041709,-506.39,0.00014101,2]
[331138986,1720101041721,-11052.87,0.00014101,2]
[331138987,1720101041731,-576.88,0.00014101,2]
[331138988,1720101041742,-500.0,0.00014101,2]
[331138989,1720101041753,-500.0,0.00014101,2]
[331138990,1720101041764,-2330.57,0.00014101,2]
[331138991,1720101041775,-500.0,0.00014101,2]
[331138992,1720101041787,-3053.52,0.00014101,2]
[331138993,1720101041797,-610.04,0.00014101,2]
[331138994,1720101041808,-395.20564565,0.00014101,2]
[331138995,1720101041819,-500.0,0.00014101,2]
[331138996,1720101041831,-1631.65,0.00014101,2]
[331138997,1720101041842,-201.99295825,0.00014101,2]
[331138998,1720101041853,-500.0,0.00014101,2]
[331138999,1720101041863,-500.0,0.00014101,2]
[331139000,1720101041873,-500.0,0.00014101,2]
[331139001,1720101041893,-1340.73,0.00014101,2]
[331139002,1720101041903,-500.0,0.00014101,2]
[331139003,1720101041913,-500.0,0.00014101,2]
[331139004,1720101041924,-500.0,0.00014101,2]
[331139005,1720101041935,-5775.51,0.00014101,2]
[331139006,1720101041944,-500.0,0.00014101,2]
[331139007,1720101041954,-500.0,0.00014101,2]
[331139008,1720101041964,-500.0,0.00014101,2]
[331139009,1720101041974,-552.10888188,0.00014101,2]
[331139010,1720101041984,-500.0,0.00014101,2]
[331139011,1720101041994,-500.0,0.00014101,2]
[331139012,1720101042004,-500.0,0.00014101,2]
[331139013,1720101042014,-1073.09,0.00014101,2]
[331139014,1720101042024,-1233.980641,0.00014101,2]
[331139015,1720101042034,-1233.980641,0.00014101,2]
[331139016,1720101042045,-500.0,0.00014101,2]
[331139017,1720101042055,-151.0,0.00014101,2]
[331139018,1720101042065,-500.0,0.00014101,2]
[331139019,1720101042076,-500.0,0.00014101,2]
[331139020,1720101042089,-500.0,0.00014101,2]
[331139021,1720101042099,-500.0,0.00014101,2]
[331139022,1720101042109,-1313.32,0.00014101,2]
[331139023,1720101042120,-775.95,0.00014101,2]
[331139024,1720101042135,-1210.14,0.00014102,2]
[331139025,1720101042145,-500.0,0.00014102,2]
[331139026,1720101042155,-1663.74,0.00014102,2]
[331139027,1720101042165,-500.0,0.00014102,2]
[331139028,1720101042176,-500.0,0.00014102,2]
[331139029,1720101042187,-1138.05,0.00014102,2]
[331139030,1720101042196,-1565.89,0.00014102,2]
[331139031,1720101042206,-500.0,0.00014102,2]
[331139032,1720101042215,-500.0,0.00014102,2]
[331139033,1720101042225,-500.0,0.00014102,2]
[331139034,1720101042236,-500.0,0.00014102,2]
[331139035,1720101042245,-859.42,0.00014102,2]
[331139036,1720101042255,-1168.25,0.00014102,2]
[331139037,1720101042265,-1168.25,0.00014102,2]
[331139038,1720101042275,-500.0,0.00014102,2]
[331139039,1720101042284,-500.0,0.00014102,2]
[331139040,1720101042294,-500.0,0.00014102,2]
[331139041,1720101042303,-688.38,0.00014102,2]
[331139042,1720101042313,-500.0,0.00014102,2]
[331139043,1720101042323,-500.0,0.00014102,2]
[331139044,1720101042332,-1087.09,0.00014102,2]
[331139045,1720101042342,-500.0,0.00014102,2]
[331139046,1720101042352,-500.0,0.00014102,2]
[331139047,1720101042362,-1229.9,0.00014102,2]
[331139048,1720101042371,-500.0,0.00014102,2]
[331139049,1720101042386,-536.61,0.00014102,2]
[331139050,1720101042395,-369.332142,0.00014102,2]
[331139053,1720101042408,-369.332142,0.00014102,2]
[331139055,1720101042419,-500.0,0.00014102,2]
[331139057,1720101042429,-151.0,0.00014102,2]
[331139059,1720101042439,-500.0,0.00014102,2]
[331139061,1720101042450,-151.0,0.00014102,2]
[331139063,1720101042460,-4911.37,0.00014102,2]
[331139065,1720101042470,-500.0,0.00014103,2]
[331139067,1720101042480,-396.57961568,0.00014103,2]
[331142735,1720101453339,155.73194644,9.999e-05,2]
[331142736,1720101491792,1326.46559387,9.999e-05,2]
[331142737,1720101495232,492.35010559,9.999e-05,2]
[331142738,1720101598061,374.40487559,9.999e-05,2]
[331142739,1720101599310,492.04523351,9.999e-05,2]
[331142740,1720101612091,1071.16044479,9.999e-05,2]
[331142741,1720101614604,155.66392399,9.999e-05,2]
[331142742,1720101625629,529.56471706,9.999e-05,2]
[331142743,1720101679486,656.79971952,9.999e-05,2]
[331142744,1720101684282,169.2995757,9.999e-05,2]
[331142745,1720101717422,846.5820154,9.999e-05,2]
[331142746,1720101726074,156.8711892,9.999e-05,2]
[331142747,1720101879976,185.89116762,9.999e-05,2]
[331142748,1720101883004,-196.07901774,0.0001212,2]
[331142749,1720101883027,-1588.6733583,0.00012655,2]
[331142750,1720101883049,-300.0,0.00012799,2]
[331142751,1720101883076,-300.0,0.00012799,2]
[331142752,1720101883100,-14026.9960124,0.000128,2]
[331142753,1720101883121,-455.5898504,0.00012923,2]
[331142755,1720101910501,270.55350766,0.0001212,2]
[331142756,1720102007301,934.12399024,9.999e-05,2]
[331142757,1720102023606,908.33583081,9.999e-05,2]
[331142758,1720102048002,843.57617703,0.0001212,2]
[331142759,1720102051924,1044.99950462,0.0001212,2]
[331142769,1720102056020,511.04468938,9.999e-05,2]
[331142770,1720102062853,233.89440832,0.0001212,2]
[331142771,1720102067171,1211.51545439,0.00025,120]
[331142772,1720102074086,7954.689162,9.999e-05,2]
[331142773,1720102076033,159.55756183,0.0001212,2]
[331142774,1720102077117,406.00532147,0.0001212,2]
[331142775,1720102091108,1211.51545439,0.00025,120]
[331142776,1720102092549,154.91479686,9.999e-05,2]
[331142777,1720102174015,509.91756708,9.999e-05,2]
[331142778,1720102175906,201.04924386,9.999e-05,2]
[331142779,1720102175939,108.62559756,9.999e-05,2]
[331142780,1720102178958,597.79480567,9.999e-05,2]
[331142781,1720102182391,176.7877084,9.999e-05,2]
[331142782,1720102186574,154.91479686,9.999e-05,2]
[331142783,1720102192800,724.58678945,9.999e-05,2]
[331142784,1720102210348,531.82036901,9.999e-05,2]
[331142806,1720102232747,-934.12399024,0.0001212,2]
[331142808,1720102232756,-49.89426274,0.0001212,2]
[331142840,1720102239102,-259.84614164,0.0001212,2]
[331142843,1720102239114,-2284.50826418,0.00013217,2]
[331142845,1720102239125,-153.0,0.00013317,2]
[331142847,1720102239136,-2297.39595548,0.00013724,2]
[331142849,1720102239146,-2297.39595545,0.00013792,2]
[331142850,1720102239157,-300.0,0.00013813,2]
[331142852,1720102239167,-300.0,0.00013813,2]
[331142854,1720102239178,-16236.5880865,0.00013814,2]
[331142856,1720102239188,-500.0,0.00013815,2]
[331142858,1720102239199,-501.51636752,0.00013815,2]
[331142860,1720102239209,-1422.8,0.00013815,2]
[331142862,1720102239220,-186.14319715,0.00013815,2]
[331142864,1720102239230,-500.0,0.00013816,2]
[331142866,1720102239240,-800.53,0.00013816,2]
[331142868,1720102239251,-3192.01,0.00013816,2]
[331142870,1720102239261,-500.0,0.00013816,2]
[331142872,1720102239272,-18322.92,0.00013816,2]
[331142874,1720102239283,-1801.92,0.00013816,2]
[331142876,1720102239293,-3261.35,0.00013816,2]
[331142878,1720102239303,-1036.59,0.00013816,2]
[331142880,1720102239314,-500.0,0.00013816,2]
[331142882,1720102239325,-500.0,0.00013816,2]
[331142884,1720102239335,-500.0,0.00013816,2]
[331142901,1720102239518,-32473.176173,0.00013816,2]
[331142903,1720102239530,-32473.176173,0.00013817,2]
[331142905,1720102239541,-500.0,0.00013823,2]
[331142907,1720102239555,-2288.87,0.00013823,2]
[331142909,1720102239566,-2983.87,0.00013823,2]
[331142911,1720102239576,-1596.79,0.00013823,2]
[331142913,1720102239587,-500.0,0.00013823,2]
[331142914,1720102239596,-500.0,0.00013823,2]
[331142915,1720102239606,-1317.96,0.00013823,2]
[331142916,1720102239616,-500.0,0.00013823,2]
[331142917,1720102239625,-5688.51,0.00013823,2]
[331142918,1720102239635,-500.0,0.00013823,2]
[331142919,1720102239644,-500.0,0.00013823,2]
[331142920,1720102239654,-500.0,0.00013823,2]
[331142921,1720102239664,-500.0,0.00013823,2]
[331142922,1720102239674,-500.0,0.00013823,2]
[331142923,1720102239684,-1220.68,0.00013823,2]
[331142924,1720102239693,-5736.08,0.00013823,2]
[331142925,1720102239703,-23575.63556652,0.00013824,2]
[331142926,1720102239713,-500.0,0.00013824,2]
[331142927,1720102239722,-500.0,0.00013824,2]
[331142928,1720102239732,-500.0,0.00013824,2]
[331142929,1720102239741,-500.0,0.00013824,2]
[331142930,1720102239751,-500.0,0.00013824,2]
[331142931,1720102239758,-648.58292271,0.00013824,2]
[331142932,1720102239770,-500.0,0.00013824,2]
[331142933,1720102239782,-500.0,0.00013824,2]
[331142934,1720102239791,-1767.46,0.00013824,2]
[331142935,1720102239801,-201.99295825,0.00013824,2]
[331142936,1720102239811,-500.0,0.00013824,2]
[331142937,1720102239820,-500.0,0.00013824,2]
[331142938,1720102239830,-500.0,0.00013824,2]
[331142939,1720102239839,-500.0,0.00013824,2]
[331142940,1720102239851,-500.0,0.00013824,2]
[331142942,1720102239864,-500.0,0.00013824,2]
[331142943,1720102239874,-500.0,0.00013824,2]
[331142945,1720102239884,-395.20564565,0.00013824,2]
[331142947,1720102239895,-500.0,0.00013824,2]
[331142949,1720102239905,-500.0,0.00013824,2]
[331142951,1720102239915,-1131.41,0.00013824,2]
[331142953,1720102239925,-500.0,0.00013824,2]
[331142955,1720102239935,-1500.65,0.00013824,2]
[331142957,1720102239945,-500.0,0.00013824,2]
[331142958,1720102239955,-552.10888188,0.00013824,2]
[331142961,1720102239966,-500.0,0.00013824,2]
[331142962,1720102239976,-500.0,0.00013824,2]
[331142964,1720102239986,-500.0,0.00013824,2]